[Event "IIFL Wealth  4th Mumbai Junior U-13"]
[Site "Mumbai"]
[Date "2019.01.05"]
[Round "7"]
[White "Roy Aanya"]
[Black "Raghu Ram Reddy Seelam"]
[Result "0-1"]
[ECO "C50"]
[WhiteElo "1232"]
[BlackElo "1472"]
[Annotator "NA RC"]
[PlyCount "92"]
[EventDate "2018.12.30"]
[EventType "swiss"]
[EventCountry "IND"]
[SourceTitle "playchess.com"]
[Source "ChessBase"]
[SourceQuality "1"]
[TimeControl "40/5400+30:1800+30"]

1. e4 {[%emt 0:00:00]} e5 {[%emt 0:00:00]} 2. Nf3 {[%emt 0:00:00]} Nc6 {[%emt 0:00:35]} 3. Bc4 {[%emt 0:00:08]} Bc5 4. O-O {[%emt 0:00:08]} Nf6 {[%emt 0:00:50]} 5. d4 {[%emt 0:00:10]} Bxd4 {[%emt 0:01:21]} 6. Nxd4 {[%emt 0:00:10]} Nxd4 {[%emt 0:00:07]} 7. f4 {[%emt 0:00:10]} d6 {[%emt 0:01:21]} 8. fxe5 {[%emt 0:00:09]} dxe5 {[%emt 0:00:00]} 9. Bg5 {[%emt 0:00:14]} Qe7 {[%emt 0:07:34]} 10. Bxf6 {[%emt 0:07:22]} gxf6 {[%emt 0:00:30]} 11. c3 {[%emt 0:05:11]} Ne6 {[%emt 0:04:43]} 12. Kh1 {[%emt 0:04:15]} Bd7 {[%emt 0:03:56]} 13. Na3 {[%emt 0:02:51]} O-O-O {[%emt 0:00:33]} 14. Qf3 {[%emt 0:04:22]} Bc6 {[%emt 0:10:54]} 15. Qxf6 {[%emt 0:00:55]} Qxf6 {[%emt 0:06:14]} 16. Rxf6 {[%emt 0:00:04]} Bxe4 {[%emt 0:02:26]} 17. Bxe6+ {[%emt 0:07:47]} fxe6 {[%emt 0:00:17]} 18. Rf2 {[%emt 0:00:15]} Rhg8 {[%emt 0:02:44]} 19. Nc4 {[%emt 0:02:52]} Rg5 {[%emt 0:02:29]} 20. Re1 {[%emt 0:01:49]} Bc6 {[%emt 0:04:24]} 21. h3 {[%emt 0:01:48]} Rdg8 {[%emt 0:03:40]} 22. Ree2 {[%emt 0:09:52]} e4 {[%emt 0:12:55]} 23. Nd2 {[%emt 0:04:03]} e3 {[%emt 0:01:23]} 24. Rxe3 {[%emt 0:00:10]} Rxg2 {[%emt 0:00:07]} 25. Rxg2 {[%emt 0:00:41]} Rxg2 {[%emt 0:00:13]} 26. Nf3 {[%emt 0:00:34]} Rg3 {[%emt 0:00:09]} 27. Kh2 {[%emt 0:00:11]} Rxf3 {[%emt 0:00:10]} 28. Rxe6 {[%emt 0:00:06]} Rxh3+ {[%emt 0:00:24]} 29. Kxh3 {[%emt 0:00:13]} Bd7 {[%emt 0:00:02]} 30. Kh4 {[%emt 0:00:12]} Bxe6 {[%emt 0:00:10]} 31. a3 {[%emt 0:00:13]} Kd7 {[%emt 0:00:03]} 32. Kh5 {[%emt 0:00:32]} Kc6 {[%emt 0:00:06]} 33. Kh6 {[%emt 0:00:14]} Kb5 {[%emt 0:00:11]} 34. Kxh7 {[%emt 0:00:10]} Kc4 {[%emt 0:00:01]} 35. Kg6 {[%emt 0:00:11]} Kb3 {[%emt 0:00:07]} 36. Kf6 {[%emt 0:00:07]} Bc4 {[%emt 0:00:06]} 37. Ke5 {[%emt 0:00:14]} Kxb2 {[%emt 0:00:10]} 38. Kd4 {[%emt 0:00:06]} b5 {[%emt 0:00:11]} 39. a4 {[%emt 0:00:07]} bxa4 {[%emt 0:00:07]} 40. Kxc4 {[%emt 0:00:00]} a3 {[%emt 0:00:00]} 41. Kb4 {[%emt 0:00:28]} a2 {[%emt 0:00:04]} 42. Kc4 {[%emt 0:00:05]} a1=Q {[%emt 0:00:05]} 43. Kb4 {[%emt 0:00:09]} Qa6 {[%emt 0:00:04]} 44. c4 {[%emt 0:00:13]} Qb6+ {[%emt 0:00:23]} 45. Ka4 {[%emt 0:00:10]} a5 {[%emt 0:00:05]} 46. c5 {[%emt 0:00:09]} Qb4# {[%emt 0:00:01]} 0-1

[Event "IIFL Wealth  4th Mumbai Junior U-13"]
[Site "Mumbai"]
[Date "2019.01.05"]
[Round "7"]
[White "Vegi Bhavishnu Sai Sivaji"]
[Black "Virle Kimaya"]
[Result "1/2-1/2"]
[ECO "B78"]
[WhiteElo "1225"]
[BlackElo "1391"]
[Annotator "NA"]
[PlyCount "162"]
[EventDate "2018.12.30"]
[EventType "swiss"]
[EventCountry "IND"]
[SourceTitle "playchess.com"]
[Source "ChessBase"]
[SourceQuality "1"]
[TimeControl "40/5400+30:1800+30"]

1. e4 {[%emt 0:00:00]} c5 {[%emt 0:00:00]} 2. Nf3 {[%emt 0:00:00]} d6 {[%emt 0:00:00]} 3. d4 {[%emt 0:00:00]} cxd4 {[%emt 0:00:00]} 4. Nxd4 {[%emt 0:00:00]} Nf6 {[%emt 0:00:03]} 5. Nc3 {[%emt 0:00:00]} g6 {[%emt 0:00:07]} 6. Be3 {[%emt 0:00:11]} Bg7 {[%emt 0:00:05]} 7. f3 {[%emt 0:00:07]} O-O {[%emt 0:00:08]} 8. Qd2 {[%emt 0:00:21]} Nc6 {[%emt 0:00:07]} 9. Bc4 {[%emt 0:00:18]} Bd7 {[%emt 0:00:06]} 10. O-O-O {[%emt 0:00:15]} Rc8 {[%emt 0:00:03]} 11. Bb3 {[%emt 0:00:17]} Nxd4 {[%emt 0:00:10]} 12. Bxd4 {[%emt 0:00:11]} b5 {[%emt 0:00:03]} 13. Bxa7 {[%emt 0:24:35]} b4 {[%emt 0:06:21]} 14. Nd5 {[%emt 0:04:03]} Nxd5 {[%emt 0:01:35]} 15. exd5 {[%emt 0:00:10]} Qa5 {[%emt 0:00:58]} 16. Bd4 {[%emt 0:04:34]} Bxd4 {[%emt 0:02:13]} 17. Qxd4 {[%emt 0:00:14]} Ba4 {[%emt 0:00:08]} 18. Qd3 {[%emt 0:01:37]} Rc7 {[%emt 0:02:16]} 19. g4 {[%emt 0:03:38]} Rfc8 {[%emt 0:02:35]} 20. Bxa4 {[%emt 0:12:44]} Qxa4 {[%emt 0:00:45]} 21. Qb3 {[%emt 0:00:07]} Rxc2+ {[%emt 0:02:52]} 22. Kb1 {[%emt 0:00:11]} Qxb3 {[%emt 0:02:33]} 23. axb3 {[%emt 0:00:23]} Rf2 {[%emt 0:00:57]} 24. Rdf1 {[%emt 0:00:11]} Rcc2 {[%emt 0:01:31]} 25. Rxf2 {[%emt 0:00:22]} Rxf2 {[%emt 0:00:23]} 26. Re1 {[%emt 0:01:02]} Kf8 {[%emt 0:00:04]} 27. Re4 {[%emt 0:04:24]} Rxf3 {[%emt 0:00:34]} 28. Rxb4 {[%emt 0:01:59]} f5 {[%emt 0:03:25]} 29. gxf5 {[%emt 0:07:31]} Rxf5 {[%emt 0:01:01]} 30. Rd4 {[%emt 0:00:27]} g5 {[%emt 0:00:54]} 31. b4 {[%emt 0:02:09]} Ke8 {[%emt 0:03:19]} 32. h4 {[%emt 0:05:30]} h6 {[%emt 0:01:29]} 33. hxg5 {[%emt 0:00:41]} hxg5 {[%emt 0:00:07]} 34. Kc2 {[%emt 0:00:21]} Kd7 {[%emt 0:06:17]} 35. b3 {[%emt 0:14:52]} Kc7 {[%emt 0:04:19]} 36. Re4 {[%emt 0:03:25]} Kd7 {[%emt 0:01:12]} 37. Rd4 {[%emt 0:00:08]} Re5 {[%emt 0:04:11]} 38. Kd3 {[%emt 0:00:28]} Rf5 {[%emt 0:03:12]} 39. Ke3 {[%emt 0:00:54]} Kd8 {[%emt 0:01:31]} 40. Ke4 {[%emt 0:00:00]} Re5+ {[%emt 0:00:00]} 41. Kf3 {[%emt 0:03:20]} Kd7 {[%emt 0:01:21]} 42. Kg4 {[%emt 0:00:28]} Kc7 {[%emt 0:01:44]} 43. Kf3 {[%emt 0:00:59]} Kb6 {[%emt 0:06:21]} 44. Kg3 {[%emt 0:00:16]} Ka6 {[%emt 0:02:04]} 45. Kf3 {[%emt 0:00:15]} Kb5 {[%emt 0:01:05]} 46. Kg4 {[%emt 0:00:11]} Kb6 {[%emt 0:01:08]} 47. Kg3 {[%emt 0:00:08]} Re3+ {[%emt 0:08:07]} 48. Kg4 {[%emt 0:00:15]} Rxb3 {[%emt 0:00:24]} 49. Kxg5 {[%emt 0:00:06]} Kb5 {[%emt 0:00:33]} 50. Re4 {[%emt 0:00:56]} Rxb4 {[%emt 0:00:33]} 51. Rxe7 {[%emt 0:00:31]} Kc5 {[%emt 0:02:10]} 52. Kf5 {[%emt 0:00:10]} Kxd5 {[%emt 0:00:17]} 53. Re1 {[%emt 0:00:06]} Rb5 {[%emt 0:07:55]} 54. Rc1 {[%emt 0:04:26]} Rb4 {[%emt 0:03:56]} 55. Rd1+ {[%emt 0:00:42]} Kc6 {[%emt 0:03:10]} 56. Ke6 {[%emt 0:01:56]} Re4+ {[%emt 0:01:04]} 57. Kf5 {[%emt 0:00:21]} Re2 {[%emt 0:00:09]} 58. Rc1+ {[%emt 0:00:28]} Kd7 {[%emt 0:00:05]} 59. Rd1 {[%emt 0:00:09]} Re5+ {[%emt 0:00:46]} 60. Kf4 {[%emt 0:00:43]} Ke6 {[%emt 0:00:50]} 61. Rd2 {[%emt 0:02:33]} d5 {[%emt 0:01:56]} 62. Rd4 {[%emt 0:00:49]} Rf5+ {[%emt 0:02:21]} 63. Kg4 {[%emt 0:00:10]} Rf2 {[%emt 0:01:06]} 64. Rf4 {[%emt 0:01:59]} Rxf4+ {[%emt 0:05:47]} 65. Kxf4 {[%emt 0:00:12]} Kd6 {[%emt 0:00:03]} 66. Ke3 {[%emt 0:00:05]} Kc5 {[%emt 0:00:03]} 67. Kd3 {[%emt 0:00:05]} d4 {[%emt 0:00:07]} 68. Kd2 {[%emt 0:00:06]} Kc4 {[%emt 0:01:28]} 69. Kc2 {[%emt 0:00:09]} d3+ {[%emt 0:00:10]} 70. Kd2 {[%emt 0:00:09]} Kd4 {[%emt 0:00:04]} 71. Kd1 {[%emt 0:00:04]} Kc3 {[%emt 0:00:16]} 72. Kc1 {[%emt 0:00:04]} Kd4 {[%emt 0:00:25]} 73. Kd2 {[%emt 0:00:05]} Ke4 {[%emt 0:00:02]} 74. Kd1 {[%emt 0:00:04]} Kd5 {[%emt 0:02:13]} 75. Kd2 {[%emt 0:00:07]} Kc4 {[%emt 0:01:07]} 76. Kd1 {[%emt 0:00:05]} Kc3 {[%emt 0:01:01]} 77. Kc1 {[%emt 0:00:06]} Kc4 {[%emt 0:01:03]} 78. Kd2 {[%emt 0:00:05]} Kd4 {[%emt 0:00:01]} 79. Kd1 {[%emt 0:00:06]} Ke3 {[%emt 0:00:13]} 80. Ke1 {[%emt 0:00:10]} d2+ {[%emt 0:00:08]} 81. Kd1 {[%emt 0:00:04]} Kd3 {[%emt 0:00:02]} 1/2-1/2

[Event "IIFL Wealth  4th Mumbai Junior U-13"]
[Site "Mumbai"]
[Date "2019.01.05"]
[Round "7"]
[White "Marzouq, Chowdhury"]
[Black "Akshit Jha"]
[Result "0-1"]
[ECO "C02"]
[WhiteElo "1224"]
[BlackElo "1604"]
[Annotator "NA"]
[PlyCount "96"]
[EventDate "2018.12.30"]
[EventType "swiss"]
[EventCountry "IND"]
[SourceTitle "playchess.com"]
[Source "ChessBase"]
[SourceQuality "1"]
[TimeControl "40/5400+30:1800+30"]

1. e4 {[%emt 0:00:00]} e6 {[%emt 0:08:40]} 2. d4 {[%emt 0:00:37]} d5 {[%emt 0:01:25]} 3. e5 {[%emt 0:00:43]} c5 {[%emt 0:00:03]} 4. c3 {[%emt 0:00:05]} Qb6 {[%emt 0:00:03]} 5. Nf3 {[%emt 0:00:26]} Nc6 {[%emt 0:00:06]} 6. a3 {[%emt 0:00:12]} a5 {[%emt 0:00:07]} 7. Qa4 {[%emt 0:03:18]} Bd7 {[%emt 0:02:31]} 8. Bb5 {[%emt 0:00:09]} Nxe5 {[%emt 0:06:19]} 9. Bxd7+ {[%emt 0:00:25]} Nxd7 {[%emt 0:00:04]} 10. Ne5 {[%emt 0:00:09]} Rd8 {[%emt 0:02:17]} 11. Nd2 {[%emt 0:03:29]} cxd4 {[%emt 0:02:58]} 12. cxd4 {[%emt 0:00:31]} Bd6 {[%emt 0:00:09]} 13. Ndf3 {[%emt 0:00:20]} Ngf6 {[%emt 0:02:22]} 14. Bg5 {[%emt 0:05:47]} h6 {[%emt 0:01:59]} 15. Nxd7 {[%emt 0:01:36]} Rxd7 {[%emt 0:00:06]} 16. Bxf6 {[%emt 0:01:02]} gxf6 {[%emt 0:00:39]} 17. O-O {[%emt 0:00:18]} Ke7 {[%emt 0:00:24]} 18. Rfc1 {[%emt 0:02:59]} Rc7 {[%emt 0:00:25]} 19. Re1 {[%emt 0:04:21]} Rg8 {[%emt 0:07:35]} 20. h3 {[%emt 0:01:54]} Rcc8 {[%emt 0:07:31]} 21. Re2 {[%emt 0:02:13]} Rg6 {[%emt 0:00:54]} 22. Rae1 {[%emt 0:01:18]} Rcg8 {[%emt 0:00:44]} 23. Nh4 {[%emt 0:01:20]} Rg5 {[%emt 0:00:05]} 24. Qc2 {[%emt 0:01:48]} Bc7 {[%emt 0:01:41]} 25. Nf5+ {[%emt 0:00:21]} Kd8 {[%emt 0:00:14]} 26. Ne3 {[%emt 0:04:06]} Qd6 {[%emt 0:00:06]} 27. g3 {[%emt 0:01:05]} Rxg3+ {[%emt 0:02:27]} 28. fxg3 {[%emt 0:00:07]} Qxg3+ {[%emt 0:00:02]} 29. Ng2 {[%emt 0:00:25]} Qh2+ {[%emt 0:00:03]} 30. Kf2 {[%emt 0:00:47]} Qxg2+ {[%emt 0:00:06]} 31. Ke3 {[%emt 0:00:13]} Bf4+ {[%emt 0:00:10]} 32. Kd3 {[%emt 0:02:01]} Rg3+ {[%emt 0:00:04]} 33. Re3 {[%emt 0:01:30]} Rxe3+ {[%emt 0:00:05]} 34. Rxe3 {[%emt 0:00:07]} Qxc2+ {[%emt 0:00:03]} 35. Kxc2 {[%emt 0:00:48]} Bxe3 {[%emt 0:00:05]} 36. Kd3 {[%emt 0:00:05]} Bf4 {[%emt 0:00:08]} 37. b3 {[%emt 0:00:17]} e5 {[%emt 0:00:03]} 38. a4 {[%emt 0:00:07]} e4+ {[%emt 0:00:04]} 39. Ke2 {[%emt 0:00:11]} Bd6 {[%emt 0:00:08]} 40. Ke3 {[%emt 0:00:00]} f5 {[%emt 0:00:00]} 41. Ke2 {[%emt 0:00:24]} f4 {[%emt 0:00:08]} 42. h4 {[%emt 0:00:06]} f5 {[%emt 0:00:02]} 43. h5 {[%emt 0:00:11]} f3+ {[%emt 0:00:04]} 44. Kf2 {[%emt 0:00:19]} f4 {[%emt 0:00:05]} 45. b4 {[%emt 0:00:41]} Bxb4 {[%emt 0:00:03]} 46. Kf1 {[%emt 0:00:13]} e3 {[%emt 0:00:10]} 47. Kg1 {[%emt 0:00:27]} e2 {[%emt 0:00:08]} 48. Kh2 {[%emt 0:00:35]} e1=Q {[%emt 0:00:10]} 0-1

[Event "IIFL Wealth  4th Mumbai Junior U-13"]
[Site "Mumbai"]
[Date "2019.01.05"]
[Round "7"]
[White "Bhagyashree G Patil"]
[Black "Nehete Arnav"]
[Result "0-1"]
[ECO "B13"]
[WhiteElo "1215"]
[BlackElo "1544"]
[Annotator "NA RC"]
[PlyCount "160"]
[EventDate "2018.12.30"]
[EventType "swiss"]
[EventCountry "IND"]
[SourceTitle "playchess.com"]
[Source "ChessBase"]
[SourceQuality "1"]
[TimeControl "40/5400+30:1800+30"]

1. e4 {[%emt 0:00:00]} c6 {[%emt 0:00:00]} 2. d4 {[%emt 0:00:00]} d5 {[%emt 0:00:06]} 3. exd5 {[%emt 0:00:17]} cxd5 {[%emt 0:00:15]} 4. Bd3 {[%emt 0:00:07]} Nc6 {[%emt 0:00:05]} 5. c3 {[%emt 0:00:18]} Qc7 {[%emt 0:00:09]} 6. h3 {[%emt 0:01:49]} e6 {[%emt 0:00:31]} 7. Nf3 {[%emt 0:00:08]} Bd6 {[%emt 0:00:08]} 8. O-O {[%emt 0:02:00]} Nge7 {[%emt 0:00:16]} 9. Be3 {[%emt 0:12:26]} Ng6 {[%emt 0:03:09]} 10. Nbd2 {[%emt 0:02:17]} O-O {[%emt 0:00:19]} 11. Nb3 {[%emt 0:01:48]} Bf4 {[%emt 0:27:22]} 12. Bxf4 {[%emt 0:03:50]} Nxf4 {[%emt 0:07:12]} 13. Bc2 {[%emt 0:01:15]} b6 {[%emt 0:04:51]} 14. Ng5 {[%emt 0:07:48]} h6 {[%emt 0:09:39]} 15. Nf3 {[%emt 0:00:04]} Re8 {[%emt 0:06:38]} 16. Qd2 {[%emt 0:02:14]} Ba6 {[%emt 0:02:42]} 17. Rfe1 {[%emt 0:02:37]} Rac8 {[%emt 0:05:22]} 18. Rac1 {[%emt 0:02:26]} Nh5 {[%emt 0:01:35]} 19. Ne5 {[%emt 0:06:09]} Nf6 {[%emt 0:01:01]} 20. Kh1 {[%emt 0:10:09]} Ne7 {[%emt 0:04:01]} 21. Qe3 {[%emt 0:06:57]} Bb7 {[%emt 0:02:09]} 22. Bd3 {[%emt 0:02:41]} Ne4 {[%emt 0:03:43]} 23. Bxe4 {[%emt 0:05:56]} dxe4 {[%emt 0:00:02]} 24. Nd2 {[%emt 0:02:52]} f6 {[%emt 0:05:29]} 25. Ng4 {[%emt 0:00:54]} h5 {[%emt 0:00:01]} 26. Nh2 {[%emt 0:00:09]} Nf5 {[%emt 0:01:36]} 27. Qe2 {[%emt 0:00:47]} e3 {[%emt 0:00:22]} 28. Ndf1 {[%emt 0:02:32]} exf2 {[%emt 0:03:44]} 29. Qxf2 {[%emt 0:00:02]} h4 {[%emt 0:06:30]} 30. Nf3 {[%emt 0:00:51]} Qf4 {[%emt 0:01:13]} 31. Qd2 {[%emt 0:03:22]} Qxd2 {[%emt 0:02:11]} 32. N1xd2 {[%emt 0:00:20]} Rcd8 {[%emt 0:01:09]} 33. Rcd1 {[%emt 0:01:53]} g5 {[%emt 0:01:32]} 34. Ne4 {[%emt 0:01:06]} Bxe4 {[%emt 0:00:02]} 35. Nd2 {[%emt 0:01:40]} Bb7 {[%emt 0:00:09]} 36. Nf1 {[%emt 0:01:47]} Ba6 {[%emt 0:00:17]} 37. Ne3 {[%emt 0:00:32]} Nxe3 {[%emt 0:00:11]} 38. Rxe3 {[%emt 0:00:05]} e5 {[%emt 0:00:01]} 39. Ree1 {[%emt 0:00:30]} exd4 {[%emt 0:00:54]} 40. cxd4 {[%emt 0:00:00]} Rxe1+ {[%emt 0:00:00]} 41. Rxe1 {[%emt 0:00:25]} Rxd4 42. Re7 {[%emt 0:00:05]} Ra4 {[%emt 0:01:44]} 43. Rxa7 {[%emt 0:00:23]} Rxa2 {[%emt 0:00:01]} 44. b4 {[%emt 0:00:13]} Bc4 {[%emt 0:00:01]} 45. Rb7 {[%emt 0:00:14]} b5 {[%emt 0:00:01]} 46. Rb8+ {[%emt 0:00:22]} Kg7 {[%emt 0:00:17]} 47. Rb7+ {[%emt 0:00:14]} Kg6 {[%emt 0:00:00]} 48. Rb8 {[%emt 0:00:22]} Rb2 {[%emt 0:00:07]} 49. Kg1 {[%emt 0:00:07]} Rxb4 {[%emt 0:00:05]} 50. Rd8 {[%emt 0:00:06]} Rb3 {[%emt 0:00:19]} 51. Rd2 {[%emt 0:00:10]} Kf5 {[%emt 0:00:05]} 52. Kf2 {[%emt 0:00:05]} Ra3 {[%emt 0:00:13]} 53. Kg1 {[%emt 0:00:20]} Ra1+ {[%emt 0:00:11]} 54. Kh2 {[%emt 0:00:06]} Ke4 {[%emt 0:00:10]} 55. Rf2 {[%emt 0:00:05]} f5 {[%emt 0:00:06]} 56. Rb2 {[%emt 0:00:44]} Ra2 {[%emt 0:00:12]} 57. Rb1 {[%emt 0:00:07]} Kd3 {[%emt 0:00:15]} 58. Rd1+ {[%emt 0:00:37]} Rd2 {[%emt 0:00:11]} 59. Re1 {[%emt 0:00:15]} Bd5 {[%emt 0:00:16]} 60. Rg1 {[%emt 0:00:05]} Rxg2+ {[%emt 0:00:02]} 61. Rxg2 {[%emt 0:00:13]} Bxg2 {[%emt 0:00:32]} 62. Kxg2 {[%emt 0:00:03]} f4 {[%emt 0:00:07]} 63. Kf3 {[%emt 0:00:04]} b4 {[%emt 0:00:04]} 64. Kf2 {[%emt 0:00:14]} b3 65. Kf3 {[%emt 0:00:09]} b2 {[%emt 0:00:04]} 66. Kg4 {[%emt 0:00:17]} b1=Q {[%emt 0:00:04]} 67. Kxg5 {[%emt 0:00:03]} Qg1+ {[%emt 0:00:06]} 68. Kxf4 {[%emt 0:00:11]} Qg3+ {[%emt 0:00:02]} 69. Kf5 {[%emt 0:00:07]} Qf3+ {[%emt 0:00:02]} 70. Kg5 {[%emt 0:00:07]} Qg3+ {[%emt 0:00:02]} 71. Kf5 {[%emt 0:00:06]} Qxh3+ {[%emt 0:00:03]} 72. Kg5 {[%emt 0:00:03]} Qg3+ {[%emt 0:00:09]} 73. Kf5 {[%emt 0:00:06]} h3 {[%emt 0:00:00]} 74. Kf6 {[%emt 0:00:12]} h2 {[%emt 0:00:01]} 75. Kf5 {[%emt 0:00:07]} h1=R {[%emt 0:00:09]} 76. Ke6 {[%emt 0:00:11]} Rf1 {[%emt 0:00:01]} 77. Kd5 {[%emt 0:00:07]} Rf5+ {[%emt 0:00:03]} 78. Kc6 {[%emt 0:00:04]} Qg6+ {[%emt 0:00:08]} 79. Kc7 {[%emt 0:00:03]} Rf7+ {[%emt 0:00:05]} 80. Kc8 {[%emt 0:00:03]} Qg8# 0-1

[Event "IIFL Wealth  4th Mumbai Junior U-13"]
[Site "Mumbai"]
[Date "2019.01.05"]
[Round "7"]
[White "Riddhika Kotia"]
[Black "Agarwal Mukund H"]
[Result "0-1"]
[ECO "D05"]
[WhiteElo "1213"]
[BlackElo "1375"]
[Annotator "NA RC"]
[PlyCount "96"]
[EventDate "2018.12.30"]
[EventType "swiss"]
[EventCountry "IND"]
[SourceTitle "playchess.com"]
[Source "ChessBase"]
[SourceQuality "1"]
[TimeControl "40/5400+30:1800+30"]

1. d4 {[%emt 0:00:00]} Nf6 {[%emt 0:00:00]} 2. Nf3 {[%emt 0:00:03]} d5 {[%emt 0:00:00]} 3. e3 {[%emt 0:00:20]} e6 {[%emt 0:00:00]} 4. Bd3 {[%emt 0:00:05]} Bd6 {[%emt 0:00:32]} 5. b3 {[%emt 0:00:18]} Nbd7 {[%emt 0:00:23]} 6. Bb2 {[%emt 0:00:12]} O-O {[%emt 0:00:47]} 7. O-O {[%emt 0:00:09]} b6 {[%emt 0:01:15]} 8. Nbd2 {[%emt 0:00:29]} Bb7 {[%emt 0:00:09]} 9. Ne5 {[%emt 0:00:25]} Ne4 {[%emt 0:05:41]} 10. f3 {[%emt 0:01:50]} Nxd2 {[%emt 0:00:42]} 11. Qxd2 {[%emt 0:00:25]} f6 {[%emt 0:03:42]} 12. Nxd7 {[%emt 0:04:43]} Qxd7 {[%emt 0:00:04]} 13. c4 {[%emt 0:11:52]} f5 {[%emt 0:08:50]} 14. f4 {[%emt 0:01:50]} Rf6 15. Rac1 {[%emt 0:04:29]} Rg6 {[%emt 0:12:18]} 16. c5 {[%emt 0:01:48]} bxc5 {[%emt 0:03:40]} 17. dxc5 {[%emt 0:00:34]} Be7 {[%emt 0:00:06]} 18. Bd4 {[%emt 0:17:11]} Bf6 {[%emt 0:00:40]} 19. Rf3 {[%emt 0:15:00]} Rf8 {[%emt 0:01:09]} 20. Qf2 {[%emt 0:02:54]} Bc6 {[%emt 0:03:11]} 21. Rg3 {[%emt 0:04:29]} Bh4 {[%emt 0:00:40]} 22. b4 {[%emt 0:15:26]} Bxg3 {[%emt 0:00:21]} 23. hxg3 {[%emt 0:00:08]} Bb5 {[%emt 0:00:14]} 24. Bxb5 {[%emt 0:01:03]} Qxb5 {[%emt 0:00:01]} 25. a3 {[%emt 0:00:46]} a5 {[%emt 0:00:27]} 26. Qd2 {[%emt 0:00:33]} axb4 {[%emt 0:00:29]} 27. axb4 {[%emt 0:00:13]} Rxg3 {[%emt 0:00:14]} 28. Qf2 {[%emt 0:01:55]} Rg4 {[%emt 0:00:23]} 29. Bc3 {[%emt 0:01:08]} Ra8 {[%emt 0:00:29]} 30. Qd2 {[%emt 0:03:44]} Ra4 {[%emt 0:03:37]} 31. Re1 {[%emt 0:02:28]} Qc4 {[%emt 0:00:34]} 32. Ra1 {[%emt 0:01:06]} Rxa1+ {[%emt 0:00:22]} 33. Bxa1 {[%emt 0:00:11]} Qb3 {[%emt 0:01:02]} 34. Bd4 {[%emt 0:00:36]} Qb1+ {[%emt 0:00:44]} 35. Kf2 {[%emt 0:00:13]} Qe4 {[%emt 0:01:28]} 36. Kf1 {[%emt 0:00:23]} Qb1+ {[%emt 0:01:06]} 37. Kf2 {[%emt 0:00:09]} Qh1 {[%emt 0:00:07]} 38. Kf3 {[%emt 0:00:24]} Qf1+ {[%emt 0:01:35]} 39. Qf2 {[%emt 0:00:09]} Qd1+ {[%emt 0:00:11]} 40. Qe2 {[%emt 0:00:00]} Rg3+ {[%emt 0:00:00]} 41. Kf2 {[%emt 0:00:36]} Rxg2+ {[%emt 0:00:27]} 42. Kxg2 {[%emt 0:00:12]} Qxe2+ {[%emt 0:00:01]} 43. Kg1 {[%emt 0:00:17]} Kf7 {[%emt 0:00:01]} 44. Be5 {[%emt 0:00:22]} Kg6 {[%emt 0:00:26]} 45. Bxc7 {[%emt 0:00:09]} Kh5 {[%emt 0:00:06]} 46. c6 {[%emt 0:00:33]} Kg4 {[%emt 0:00:03]} 47. Bd8 {[%emt 0:00:22]} Kf3 {[%emt 0:00:07]} 48. c7 {[%emt 0:00:18]} Qg2# {[%emt 0:00:07]} 0-1

[Event "IIFL Wealth  4th Mumbai Junior U-13"]
[Site "Mumbai"]
[Date "2019.01.05"]
[Round "7"]
[White "Dawda Vihaan"]
[Black "Yash Satish Parab"]
[Result "1-0"]
[ECO "C54"]
[WhiteElo "1212"]
[BlackElo "1058"]
[Annotator "NA RC"]
[PlyCount "131"]
[EventDate "2018.12.30"]
[EventType "swiss"]
[EventCountry "IND"]
[SourceTitle "playchess.com"]
[Source "ChessBase"]
[SourceQuality "1"]
[TimeControl "40/5400+30:1800+30"]

1. e4 e5 2. Nf3 Nc6 3. Bc4 Bc5 4. c3 Nf6 5. d3 d6 6. Nbd2 O-O 7. Bb3 a6 8. h3 Be6 9. Nf1 h6 10. Ng3 Ne7 11. Nh4 Qd7 12. Qf3 Ng6 13. Nhf5 d5 14. Nxh6+ Kh8 15. Nhf5 dxe4 16. dxe4 Bxb3 17. axb3 Rad8 18. Bg5 Qd3 19. Bxf6 Qd2+ 20. Kf1 gxf6 21. Qh5+ Kg8 22. Nh6+ Kh7 23. Ng4+ Kg8 24. Nxf6+ Kg7 25. Ng4 Kg8 26. Nf5 Qd1+ 27. Rxd1 Rxd1+ 28. Ke2 Nf4+ 29. Kxd1 Nxh5 30. Nxe5 Rd8+ 31. Ke2 Re8 32. Nh6+ Kg7 33. Nhxf7 Re7 34. Rd1 Bd6 35. Nxd6 cxd6 36. Nc4 Rxe4+ 37. Kd3 d5 38. Ne3 Nf4+ 39. Kc2 Re5 40. Rd4 Ne6 41. Rxd5 Re4 42. Rd7+ Kf6 43. Rxb7 Nc5 44. Rb6+ Re6 45. Rxe6+ Kxe6 46. b4 Ne4 47. f3 Nd6 48. c4 Ke5 49. Kd3 Ke6 50. f4 Kf7 51. g4 Ke6 52. Kd4 Ke7 53. Nf5+ Nxf5+ 54. gxf5 Kf6 55. c5 Kxf5 56. c6 Ke6 57. f5+ Kd6 58. f6 Ke6 59. c7 Kd7 60. f7 Kxc7 61. f8=Q Kb6 62. Qc5+ Kb7 63. Kd5 Kb8 64. Qe7 a5 65. Kc6 Ka8 66. Qb7# 1-0